[Event "*** Titled Tuesday Blitz"]
[Site "Chess.com"]
[Date "2020.12.29"]
[Round "1"]
[White "Nadeev_Sergey"]
[Black "Alexander_Moskalenko"]
[Result "0-1"]
[WhiteElo "2438"]
[BlackElo "2841"]
[TimeControl "180+1"]
[EndTime "10:06:29 PST"]
[Termination "Alexander_Moskalenko won by resignation"]

1. d4 {[%clk 0:02:55.1]} 1... d5 {[%clk 0:02:59.4]} 2. Bf4 {[%clk 0:02:55.4]}
2... c5 {[%clk 0:02:58.5]} 3. c3 {[%clk 0:02:52.8]} 3... Nf6 {[%clk 0:02:58.2]}
4. e3 {[%clk 0:02:52.5]} 4... Qb6 {[%clk 0:02:57.9]} 5. Qb3 {[%clk 0:02:51.9]}
5... c4 {[%clk 0:02:57.5]} 6. Qc2 {[%clk 0:02:52.3]} 6... Nc6 {[%clk 0:02:57.6]}
7. Nd2 {[%clk 0:02:50.8]} 7... g6 {[%clk 0:02:57.5]} 8. Ngf3 {[%clk 0:02:50.4]}
8... Bf5 {[%clk 0:02:56.9]} 9. Qc1 {[%clk 0:02:49]} 9... Bg7 {[%clk 0:02:57.3]}
10. Be2 {[%clk 0:02:47.3]} 10... Nh5 {[%clk 0:02:49.1]} 11. Bg5 {[%clk
0:02:35.9]} 11... h6 {[%clk 0:02:48.9]} 12. Bh4 {[%clk 0:02:35.8]} 12... g5
{[%clk 0:02:49.4]} 13. Ng1 {[%clk 0:02:32.8]} 13... Bg6 {[%clk 0:02:45.9]} 14.
Bg3 {[%clk 0:02:10.2]} 14... Nxg3 {[%clk 0:02:45.2]} 15. hxg3 {[%clk 0:02:11.1]}
15... e5 {[%clk 0:02:45.6]} 16. Bh5 {[%clk 0:02:05.7]} 16... O-O {[%clk
0:02:41.3]} 17. Ne2 {[%clk 0:02:02.8]} 17... Bd3 {[%clk 0:02:38.7]} 18. O-O
{[%clk 0:01:49.8]} 18... e4 {[%clk 0:02:32.6]} 19. f4 {[%clk 0:01:39]} 19...
exf3 {[%clk 0:02:26.4]} 20. Bxf3 {[%clk 0:01:38.6]} 20... Ne7 {[%clk 0:02:17.1]}
21. Re1 {[%clk 0:01:35.4]} 21... Qe6 {[%clk 0:02:09.9]} 22. Nf1 {[%clk
0:01:08.4]} 22... Nf5 {[%clk 0:02:07.4]} 23. Bg4 {[%clk 0:00:56]} 23... Rae8
{[%clk 0:02:07.1]} 24. Qd2 {[%clk 0:00:50.9]} 24... Qe4 {[%clk 0:02:04.4]} 25.
Bf3 {[%clk 0:00:44.8]} 25... Qe6 {[%clk 0:02:03.9]} 26. Bg4 {[%clk 0:00:45]}
26... Qg6 {[%clk 0:02:04.4]} 27. Bxf5 {[%clk 0:00:37.2]} 27... Qxf5 {[%clk
0:02:01.7]} 28. b3 {[%clk 0:00:37.1]} 28... b5 {[%clk 0:01:58.4]} 29. Nc1 {[%clk
0:00:36.7]} 29... Be4 {[%clk 0:01:58.3]} 30. a4 {[%clk 0:00:35.7]} 30... a6
{[%clk 0:01:53.3]} 31. axb5 {[%clk 0:00:35.6]} 31... axb5 {[%clk 0:01:54.2]} 32.
b4 {[%clk 0:00:34.5]} 32... h5 {[%clk 0:01:54.2]} 33. Ra5 {[%clk 0:00:31.2]}
33... h4 {[%clk 0:01:47.5]} 34. Qf2 {[%clk 0:00:29.9]} 34... Qg4 {[%clk
0:01:46.1]} 35. Rxb5 {[%clk 0:00:28.7]} 35... h3 {[%clk 0:01:42.2]} 36. Nh2
{[%clk 0:00:28]} 36... Qd7 {[%clk 0:01:40.5]} 37. Ra5 {[%clk 0:00:23.4]} 37...
hxg2 {[%clk 0:01:40.9]} 38. Ne2 {[%clk 0:00:23]} 38... f5 {[%clk 0:01:36.8]} 39.
Rea1 {[%clk 0:00:22.1]} 39... Re7 {[%clk 0:01:36.2]} 40. Ra8 {[%clk 0:00:21]}
40... Qc6 {[%clk 0:01:31.8]} 41. R8a6 {[%clk 0:00:19.9]} 41... Qe8 {[%clk
0:01:31.5]} 42. Rd6 {[%clk 0:00:18.6]} 42... Re6 {[%clk 0:01:28.2]} 43. Rxe6
{[%clk 0:00:17.6]} 43... Qxe6 {[%clk 0:01:29.1]} 44. Ra7 {[%clk 0:00:16.4]}
44... Qb6 {[%clk 0:01:28.2]} 45. Ra5 {[%clk 0:00:16.3]} 45... Qh6 {[%clk
0:01:27.2]} 46. Ra7 {[%clk 0:00:14.2]} 46... Rf6 {[%clk 0:01:24.7]} 47. Ra8+
{[%clk 0:00:13.6]} 47... Bf8 {[%clk 0:01:25.2]} 48. Re8 {[%clk 0:00:12.4]} 48...
Qxh2+ {[%clk 0:01:25.3]} 0-1

[Event "*** Titled Tuesday Blitz"]
[Site "Chess.com"]
[Date "2020.12.29"]
[Round "1"]
[White "TregubovP"]
[Black "stephan97"]
[Result "1-0"]
[WhiteElo "2551"]
[BlackElo "2237"]
[TimeControl "180+1"]
[EndTime "10:06:31 PST"]
[Termination "TregubovP won by resignation"]

1. e4 {[%clk 0:03:00.9]} 1... c5 {[%clk 0:02:59.7]} 2. Nf3 {[%clk 0:03:00.2]}
2... d6 {[%clk 0:03:00.2]} 3. c3 {[%clk 0:02:59.8]} 3... Nf6 {[%clk 0:02:59.1]}
4. Be2 {[%clk 0:03:00.3]} 4... g6 {[%clk 0:02:52.2]} 5. O-O {[%clk 0:02:59.9]}
5... Bg7 {[%clk 0:02:52.1]} 6. Bb5+ {[%clk 0:03:00.5]} 6... Bd7 {[%clk
0:02:51.7]} 7. Bxd7+ {[%clk 0:02:59.5]} 7... Qxd7 {[%clk 0:02:51.8]} 8. Re1
{[%clk 0:02:59.7]} 8... Nc6 {[%clk 0:02:51.2]} 9. d4 {[%clk 0:02:59.1]} 9...
cxd4 {[%clk 0:02:50]} 10. cxd4 {[%clk 0:02:59.1]} 10... O-O {[%clk 0:02:49.1]}
11. Nc3 {[%clk 0:02:57.8]} 11... e5 {[%clk 0:02:36.2]} 12. dxe5 {[%clk
0:02:52.3]} 12... dxe5 {[%clk 0:02:36.1]} 13. Qxd7 {[%clk 0:02:51]} 13... Nxd7
{[%clk 0:02:36]} 14. Be3 {[%clk 0:02:41.6]} 14... Rfd8 {[%clk 0:02:20.8]} 15.
Rad1 {[%clk 0:02:39.9]} 15... Nf8 {[%clk 0:02:01.5]} 16. Nd5 {[%clk 0:02:26.4]}
16... Ne6 {[%clk 0:01:58.1]} 17. Rd3 {[%clk 0:02:23.4]} 17... a5 {[%clk
0:01:26]} 18. a3 {[%clk 0:02:16]} 18... b5 {[%clk 0:01:18.3]} 19. Rc1 {[%clk
0:02:11.9]} 19... Ncd4 {[%clk 0:01:17.5]} 20. Nxd4 {[%clk 0:01:51.2]} 20... exd4
{[%clk 0:01:12.3]} 21. Bd2 {[%clk 0:01:51.6]} 21... f5 {[%clk 0:01:02.3]} 22.
exf5 {[%clk 0:01:41.2]} 22... Rxd5 {[%clk 0:00:58.1]} 23. fxe6 {[%clk
0:01:40.7]} 23... Re8 {[%clk 0:00:57.7]} 24. Rc6 {[%clk 0:01:34.7]} 24... b4
{[%clk 0:00:31.4]} 25. axb4 {[%clk 0:01:30.2]} 25... axb4 {[%clk 0:00:31.7]} 26.
f4 {[%clk 0:01:24.1]} 26... Rb5 {[%clk 0:00:26.1]} 27. b3 {[%clk 0:01:18]} 27...
Rb7 {[%clk 0:00:20.1]} 28. g4 {[%clk 0:01:04.9]} 28... h5 {[%clk 0:00:18.7]} 29.
h3 {[%clk 0:01:02.5]} 29... hxg4 {[%clk 0:00:18.6]} 30. hxg4 {[%clk 0:01:02.1]}
30... Rbe7 {[%clk 0:00:19.3]} 31. f5 {[%clk 0:01:01.9]} 31... gxf5 {[%clk
0:00:20.2]} 32. gxf5 {[%clk 0:01:01.3]} 32... Rb7 {[%clk 0:00:20.7]} 33. Kg2
{[%clk 0:00:57.9]} 33... Bf6 {[%clk 0:00:21.1]} 34. Kf3 {[%clk 0:00:57.3]} 34...
Kg7 {[%clk 0:00:21.7]} 35. Ke4 {[%clk 0:00:56.7]} 35... Kf8 {[%clk 0:00:22]} 36.
Rc4 {[%clk 0:00:53]} 36... Ke7 {[%clk 0:00:21.8]} 37. Bxb4+ {[%clk 0:00:52.4]}
37... Kd8 {[%clk 0:00:21]} 38. Bc5 {[%clk 0:00:51.4]} 38... Rc7 {[%clk
0:00:20.1]} 39. Bxd4 {[%clk 0:00:51.6]} 1-0

[Event "*** Titled Tuesday Blitz"]
[Site "Chess.com"]
[Date "2020.12.29"]
[Round "1"]
[White "alexg2003"]
[Black "GM_Crest"]
[Result "1-0"]
[WhiteElo "2393"]
[BlackElo "2686"]
[TimeControl "180+1"]
[EndTime "10:06:32 PST"]
[Termination "alexg2003 won by checkmate"]

1. e4 {[%clk 0:02:57.8]} 1... e6 {[%clk 0:02:49.4]} 2. d4 {[%clk 0:02:57.2]}
2... d5 {[%clk 0:02:47.5]} 3. Nd2 {[%clk 0:02:54.2]} 3... Be7 {[%clk 0:02:46.2]}
4. Ngf3 {[%clk 0:02:52.6]} 4... Nf6 {[%clk 0:02:45.1]} 5. Bd3 {[%clk 0:02:49]}
5... c5 {[%clk 0:02:44.4]} 6. e5 {[%clk 0:02:48.5]} 6... Nfd7 {[%clk 0:02:44.3]}
7. c3 {[%clk 0:02:48.8]} 7... Nc6 {[%clk 0:02:42.6]} 8. O-O {[%clk 0:02:48.2]}
8... a5 {[%clk 0:02:42.9]} 9. b3 {[%clk 0:02:24.5]} 9... a4 {[%clk 0:02:39.5]}
10. Bb2 {[%clk 0:02:14.6]} 10... a3 {[%clk 0:02:32.4]} 11. Bc1 {[%clk
0:02:14.5]} 11... cxd4 {[%clk 0:02:32.7]} 12. cxd4 {[%clk 0:02:13]} 12... Qb6
{[%clk 0:02:25.3]} 13. Re1 {[%clk 0:02:04.8]} 13... Nxd4 {[%clk 0:02:24.8]} 14.
Rb1 {[%clk 0:01:54.6]} 14... Nc6 {[%clk 0:02:20.4]} 15. Nf1 {[%clk 0:01:50.6]}
15... Nb4 {[%clk 0:02:20.5]} 16. Be3 {[%clk 0:01:46.6]} 16... Nc5 {[%clk
0:02:12.6]} 17. Be2 {[%clk 0:01:26.5]} 17... Bd7 {[%clk 0:01:19.7]} 18. Qd2
{[%clk 0:01:22.2]} 18... Qa5 {[%clk 0:01:15.8]} 19. Nd4 {[%clk 0:01:15.4]} 19...
Ne4 {[%clk 0:01:14.5]} 20. Qd1 {[%clk 0:01:04]} 20... Nc3 {[%clk 0:01:13.9]} 21.
Qd2 {[%clk 0:01:04.3]} 21... Nxb1 {[%clk 0:01:10]} 22. Rxb1 {[%clk 0:01:05.2]}
22... Rc8 {[%clk 0:01:10]} 23. Ng3 {[%clk 0:01:02.3]} 23... g6 {[%clk
0:01:04.9]} 24. Bg5 {[%clk 0:00:51.2]} 24... Nc6 {[%clk 0:00:53.3]} 25. b4
{[%clk 0:00:34.3]} 25... Bxb4 {[%clk 0:00:52.7]} 26. Qf4 {[%clk 0:00:27.7]}
26... Nxd4 {[%clk 0:00:32.9]} 27. Qxd4 {[%clk 0:00:25.5]} 27... Bc3 {[%clk
0:00:27]} 28. Qf4 {[%clk 0:00:23.3]} 28... Bb2 {[%clk 0:00:24.6]} 29. Qf6 {[%clk
0:00:20.5]} 29... Rg8 {[%clk 0:00:23.4]} 30. Qe7# {[%clk 0:00:20.4]} 1-0

[Event "*** Titled Tuesday Blitz"]
[Site "Chess.com"]
[Date "2020.12.29"]
[Round "1"]
[White "davidkalashian"]
[Black "DrRiebert"]
[Result "1-0"]
[WhiteElo "2597"]
[BlackElo "2298"]
[TimeControl "180+1"]
[EndTime "10:06:33 PST"]
[Termination "davidkalashian won by resignation"]

1. d4 {[%clk 0:03:00.9]} 1... d5 {[%clk 0:02:39.5]} 2. Nf3 {[%clk 0:03:00.7]}
2... Nf6 {[%clk 0:02:39.5]} 3. c4 {[%clk 0:03:00.2]} 3... c6 {[%clk 0:02:40.1]}
4. Qc2 {[%clk 0:02:59.7]} 4... dxc4 {[%clk 0:02:39.9]} 5. Qxc4 {[%clk
0:02:55.5]} 5... Bf5 {[%clk 0:02:39.9]} 6. Nc3 {[%clk 0:02:53.9]} 6... e6 {[%clk
0:02:40.4]} 7. g3 {[%clk 0:02:53.6]} 7... Be7 {[%clk 0:02:40.1]} 8. Bg2 {[%clk
0:02:53.8]} 8... Nbd7 {[%clk 0:02:40.2]} 9. O-O {[%clk 0:02:50.5]} 9... h6
{[%clk 0:02:40.2]} 10. Qb3 {[%clk 0:02:50.7]} 10... Qb6 {[%clk 0:02:39.3]} 11.
Re1 {[%clk 0:02:50.7]} 11... Qxb3 {[%clk 0:02:24.1]} 12. axb3 {[%clk 0:02:46.6]}
12... Bc2 {[%clk 0:02:24.7]} 13. Nd2 {[%clk 0:02:38.9]} 13... Nd5 {[%clk
0:02:23.7]} 14. e4 {[%clk 0:02:35]} 14... Nb4 {[%clk 0:02:23.5]} 15. Nc4 {[%clk
0:02:22]} 15... Bxb3 {[%clk 0:02:14]} 16. Na5 {[%clk 0:02:19.7]} 16... Nd3
{[%clk 0:01:43.2]} 17. Re3 {[%clk 0:02:09.6]} 17... Bc2 {[%clk 0:01:42.8]} 18.
Re2 {[%clk 0:02:02.1]} 18... Nb4 {[%clk 0:01:40.2]} 19. Nxb7 {[%clk 0:01:56.2]}
19... O-O {[%clk 0:01:34.8]} 20. Na5 {[%clk 0:01:53.2]} 20... Rfc8 {[%clk
0:01:22.5]} 21. h4 {[%clk 0:01:48.5]} 21... e5 {[%clk 0:00:59.2]} 22. d5 {[%clk
0:01:42.9]} 22... Bd3 {[%clk 0:00:55.7]} 23. Rd2 {[%clk 0:01:39.9]} 23... Nc5
{[%clk 0:00:53.6]} 24. dxc6 {[%clk 0:01:26.4]} 24... Bd8 {[%clk 0:00:38.9]} 25.
Nd5 {[%clk 0:01:20.2]} 25... Nxd5 {[%clk 0:00:34.8]} 26. exd5 {[%clk 0:01:19.3]}
26... Bxa5 {[%clk 0:00:25.9]} 27. Rxa5 {[%clk 0:01:18.4]} 27... Nb3 {[%clk
0:00:26.4]} 28. Rxd3 {[%clk 0:01:17.4]} 28... Nxa5 {[%clk 0:00:20.6]} 29. b4
{[%clk 0:01:11.7]} 29... Nc4 {[%clk 0:00:19.8]} 30. Rc3 {[%clk 0:01:01.4]} 30...
Nd6 {[%clk 0:00:19.4]} 31. Be3 {[%clk 0:00:56.6]} 31... Kf8 {[%clk 0:00:18.6]}
32. Bc5 {[%clk 0:00:53]} 32... Ke7 {[%clk 0:00:18.9]} 33. Re3 {[%clk 0:00:53.1]}
33... f6 {[%clk 0:00:18.5]} 34. f4 {[%clk 0:00:53.4]} 1-0

[Event "*** Titled Tuesday Blitz"]
[Site "Chess.com"]
[Date "2020.12.29"]
[Round "1"]
[White "Vesper2018"]
[Black "BulletMercenary"]
[Result "1-0"]
[WhiteElo "2655"]
[BlackElo "2342"]
[TimeControl "180+1"]
[EndTime "10:06:35 PST"]
[Termination "Vesper2018 won by resignation"]

1. e4 {[%clk 0:02:59.4]} 1... e6 {[%clk 0:03:00.9]} 2. d4 {[%clk 0:02:57.3]}
2... d5 {[%clk 0:03:00.2]} 3. e5 {[%clk 0:02:56.4]} 3... c5 {[%clk 0:02:59.7]}
4. c3 {[%clk 0:02:56.1]} 4... Nc6 {[%clk 0:02:58.9]} 5. Nf3 {[%clk 0:02:56.2]}
5... Qc7 {[%clk 0:02:53.5]} 6. Be2 {[%clk 0:02:45.9]} 6... f6 {[%clk 0:02:52.1]}
7. Bf4 {[%clk 0:02:32.3]} 7... Qb6 {[%clk 0:02:07.4]} 8. Qd2 {[%clk 0:02:24.3]}
8... g5 {[%clk 0:02:05.7]} 9. Be3 {[%clk 0:01:40]} 9... g4 {[%clk 0:02:00.4]}
10. Nh4 {[%clk 0:01:26.8]} 10... fxe5 {[%clk 0:01:41.5]} 11. dxe5 {[%clk
0:01:24.5]} 11... Nxe5 {[%clk 0:01:38.7]} 12. h3 {[%clk 0:01:13.7]} 12... gxh3
{[%clk 0:01:34.6]} 13. Rxh3 {[%clk 0:01:13.2]} 13... Ne7 {[%clk 0:01:23.7]} 14.
Bh5+ {[%clk 0:01:01.2]} 14... Kd8 {[%clk 0:01:20.7]} 15. Bg5 {[%clk 0:00:57.4]}
15... Bg7 {[%clk 0:01:16.2]} 16. Na3 {[%clk 0:00:53.7]} 16... Bd7 {[%clk
0:01:05.6]} 17. O-O-O {[%clk 0:00:50.1]} 17... Be8 {[%clk 0:01:01.6]} 18. Bxe8
{[%clk 0:00:40.9]} 18... Rxe8 {[%clk 0:00:53]} 19. f4 {[%clk 0:00:36.7]} 19...
Nf7 {[%clk 0:00:42.5]} 20. f5 {[%clk 0:00:35]} 20... exf5 {[%clk 0:00:31]} 21.
Qxd5+ {[%clk 0:00:32.7]} 21... Kc7 {[%clk 0:00:23.6]} 22. Qd7+ {[%clk 0:00:32]}
22... Kb8 {[%clk 0:00:21.5]} 23. Qxe8+ {[%clk 0:00:31.3]} 23... Nc8 {[%clk
0:00:21.7]} 24. Bf4+ {[%clk 0:00:30.1]} 24... Be5 {[%clk 0:00:21.1]} 25. Bxe5+
{[%clk 0:00:30]} 25... Nxe5 {[%clk 0:00:22]} 26. Qxe5+ {[%clk 0:00:30]} 26...
Qc7 {[%clk 0:00:22.6]} 27. Qxc7+ {[%clk 0:00:27.6]} 27... Kxc7 {[%clk
0:00:23.5]} 28. Nxf5 {[%clk 0:00:28]} 28... a6 {[%clk 0:00:22.3]} 29. Rxh7+
{[%clk 0:00:27.4]} 29... Kb6 {[%clk 0:00:23.2]} 30. Nc4+ {[%clk 0:00:26.9]}
30... Ka7 {[%clk 0:00:23.1]} 31. Rd8 {[%clk 0:00:26.4]} 31... Rb8 {[%clk
0:00:20.8]} 32. Na5 {[%clk 0:00:25.8]} 1-0

[Event "*** Titled Tuesday Blitz"]
[Site "Chess.com"]
[Date "2020.12.29"]
[Round "1"]
[White "sotochess"]
[Black "FMOlexandrProhorov"]
[Result "1-0"]
[WhiteElo "2518"]
[BlackElo "2167"]
[TimeControl "180+1"]
[EndTime "10:06:36 PST"]
[Termination "sotochess won on time"]

1. e4 {[%clk 0:03:00.2]} 1... c5 {[%clk 0:02:54.6]} 2. Nf3 {[%clk 0:03:00]} 2...
d6 {[%clk 0:02:52.4]} 3. d4 {[%clk 0:02:59.9]} 3... cxd4 {[%clk 0:02:51.1]} 4.
Nxd4 {[%clk 0:03:00.8]} 4... Nf6 {[%clk 0:02:51.4]} 5. f3 {[%clk 0:03:00.8]}
5... e5 {[%clk 0:02:49.6]} 6. Bb5+ {[%clk 0:02:59.1]} 6... Bd7 {[%clk
0:02:38.3]} 7. Bxd7+ {[%clk 0:02:55.1]} 7... Nbxd7 {[%clk 0:02:22]} 8. Nf5
{[%clk 0:02:52.2]} 8... Qc7 {[%clk 0:02:04.6]} 9. b3 {[%clk 0:02:36.5]} 9... g6
{[%clk 0:01:44.7]} 10. Ne3 {[%clk 0:02:33.7]} 10... Bg7 {[%clk 0:01:29.8]} 11.
c4 {[%clk 0:02:33.1]} 11... O-O {[%clk 0:01:13.7]} 12. O-O {[%clk 0:02:25.8]}
12... Nc5 {[%clk 0:00:57.1]} 13. Nc3 {[%clk 0:02:20.2]} 13... Rad8 {[%clk
0:00:41.8]} 14. Kh1 {[%clk 0:02:18.2]} 14... Ne6 {[%clk 0:00:29.5]} 15. Ned5
{[%clk 0:02:17.6]} 15... Nxd5 {[%clk 0:00:28.3]} 16. Nxd5 {[%clk 0:02:17.3]}
16... Qb8 {[%clk 0:00:26.1]} 17. Be3 {[%clk 0:02:13.1]} 17... f5 {[%clk
0:00:22.7]} 18. Qd2 {[%clk 0:02:05.6]} 18... Nd4 {[%clk 0:00:18.9]} 19. exf5
{[%clk 0:01:59.1]} 19... gxf5 {[%clk 0:00:13]} 20. Bh6 {[%clk 0:01:52.4]} 20...
Rd7 {[%clk 0:00:12.8]} 21. Rae1 {[%clk 0:01:47.8]} 21... b5 {[%clk 0:00:11.6]}
22. Bxg7 {[%clk 0:01:35.2]} 22... Rxg7 {[%clk 0:00:10.9]} 23. f4 {[%clk
0:01:34.9]} 23... bxc4 {[%clk 0:00:09.3]} 24. bxc4 {[%clk 0:01:33]} 24... Kh8
{[%clk 0:00:09]} 25. c5 {[%clk 0:01:21.9]} 25... Qb7 {[%clk 0:00:04.2]} 26. Nc3
{[%clk 0:01:18.2]} 26... dxc5 {[%clk 0:00:03.4]} 27. Rxe5 {[%clk 0:01:17.4]}
27... Rfg8 {[%clk 0:00:03.5]} 28. Rf2 {[%clk 0:01:17.2]} 28... Qb4 {[%clk
0:00:01.2]} 29. h3 {[%clk 0:01:12.2]} 29... h6 {[%clk 0:00:01.1]} 30. Re3 {[%clk
0:01:05]} 30... Kh7 {[%clk 0:00:02]} 31. Kh2 {[%clk 0:01:04.5]} 31... a5 {[%clk
0:00:02.9]} 32. Qd3 {[%clk 0:01:03]} 32... a4 {[%clk 0:00:03.8]} 33. Nd5 {[%clk
0:01:02.5]} 33... Qb7 {[%clk 0:00:02.8]} 34. Nf6+ {[%clk 0:01:02.3]} 34... Kh8
{[%clk 0:00:01.4]} 35. Nxg8 {[%clk 0:01:02.4]} 35... Rxg8 {[%clk 0:00:01.7]} 36.
Re5 {[%clk 0:01:01.4]} 36... Qg7 {[%clk 0:00:01.5]} 37. Rxc5 {[%clk 0:00:57.8]}
1-0

[Event "*** Titled Tuesday Blitz"]
[Site "Chess.com"]
[Date "2020.12.29"]
[Round "1"]
[White "Lucas_Tomiello"]
[Black "AlexeiShirov"]
[Result "0-1"]
[WhiteElo "2431"]
[BlackElo "2828"]
[TimeControl "180+1"]
[EndTime "10:06:39 PST"]
[Termination "AlexeiShirov won by resignation"]

1. e4 {[%clk 0:03:00.9]} 1... e5 {[%clk 0:02:59.1]} 2. Nf3 {[%clk 0:02:59.2]}
2... Nc6 {[%clk 0:02:59]} 3. Bb5 {[%clk 0:02:59.3]} 3... a6 {[%clk 0:02:58.3]}
4. Ba4 {[%clk 0:02:59.2]} 4... Nf6 {[%clk 0:02:58.4]} 5. O-O {[%clk 0:02:57.9]}
5... b5 {[%clk 0:02:58]} 6. Bb3 {[%clk 0:02:57.9]} 6... Bc5 {[%clk 0:02:57.7]}
7. c3 {[%clk 0:02:54.1]} 7... d6 {[%clk 0:02:57.1]} 8. d4 {[%clk 0:02:50.4]}
8... Bb6 {[%clk 0:02:57.1]} 9. a4 {[%clk 0:02:38.8]} 9... Bg4 {[%clk 0:02:52.4]}
10. h3 {[%clk 0:02:21.5]} 10... Bxf3 {[%clk 0:02:40.6]} 11. Qxf3 {[%clk
0:02:20.9]} 11... exd4 {[%clk 0:02:40.6]} 12. Bg5 {[%clk 0:02:02.7]} 12... Ne5
{[%clk 0:02:33.7]} 13. Qf5 {[%clk 0:01:55.2]} 13... h6 {[%clk 0:02:08.8]} 14.
Bxf6 {[%clk 0:01:49]} 14... Qxf6 {[%clk 0:02:08]} 15. Qxf6 {[%clk 0:01:43.9]}
15... gxf6 {[%clk 0:02:06.9]} 16. axb5 {[%clk 0:01:43.6]} 16... a5 {[%clk
0:02:06.7]} 17. Bd5 {[%clk 0:01:19.1]} 17... Ra7 {[%clk 0:02:04.4]} 18. Ra4
{[%clk 0:01:12.3]} 18... dxc3 {[%clk 0:01:51.3]} 19. Nxc3 {[%clk 0:01:12.5]}
19... Nd3 {[%clk 0:01:51.2]} 20. Bc6+ {[%clk 0:01:04.8]} 20... Kf8 {[%clk
0:01:29.5]} 21. Nd5 {[%clk 0:01:04.7]} 21... Nxb2 {[%clk 0:01:28.1]} 22. Ra2
{[%clk 0:01:01.6]} 22... Nd3 {[%clk 0:01:24.5]} 23. Nxb6 {[%clk 0:00:49.7]}
23... cxb6 {[%clk 0:01:23.6]} 24. Rd2 {[%clk 0:00:49.9]} 24... Nc5 {[%clk
0:01:08.8]} 25. Rxd6 {[%clk 0:00:48.8]} 25... Ke7 {[%clk 0:01:04.8]} 26. Rfd1
{[%clk 0:00:40.9]} 26... a4 {[%clk 0:01:03.5]} 27. R6d2 {[%clk 0:00:26.8]} 27...
a3 {[%clk 0:01:02.6]} 28. Ra2 {[%clk 0:00:20.4]} 28... Rd8 {[%clk 0:01:01.1]}
29. Rxd8 {[%clk 0:00:18.7]} 29... Kxd8 {[%clk 0:01:00.2]} 30. Kf1 {[%clk
0:00:16.3]} 30... Nd3 {[%clk 0:00:57.5]} 31. Bd5 {[%clk 0:00:09.2]} 31... Nb4
{[%clk 0:00:54.4]} 32. Ra1 {[%clk 0:00:09.2]} 32... Nxd5 {[%clk 0:00:51.4]} 33.
exd5 {[%clk 0:00:10.1]} 33... Ke7 {[%clk 0:00:50.4]} 34. Ke2 {[%clk 0:00:08.9]}
34... Kd6 {[%clk 0:00:50]} 35. Kd3 {[%clk 0:00:08.5]} 35... Kxd5 {[%clk
0:00:49.3]} 0-1

[Event "*** Titled Tuesday Blitz"]
[Site "Chess.com"]
[Date "2020.12.29"]
[Round "1"]
[White "Korchmar_Vasiliy"]
[Black "novocane"]
[Result "0-1"]
[WhiteElo "2568"]
[BlackElo "2298"]
[TimeControl "180+1"]
[EndTime "10:06:41 PST"]
[Termination "novocane won on time"]

1. e4 {[%clk 0:03:00.9]} 1... c5 {[%clk 0:02:59.3]} 2. Nf3 {[%clk 0:03:00.8]}
2... Nc6 {[%clk 0:02:58.6]} 3. d4 {[%clk 0:03:00.6]} 3... cxd4 {[%clk
0:02:58.2]} 4. Nxd4 {[%clk 0:03:01.5]} 4... e5 {[%clk 0:02:58]} 5. Nb5 {[%clk
0:02:58.6]} 5... d6 {[%clk 0:02:57.4]} 6. N1c3 {[%clk 0:02:55.1]} 6... a6 {[%clk
0:02:54.2]} 7. Na3 {[%clk 0:02:55.2]} 7... Be7 {[%clk 0:02:53.5]} 8. Nd5 {[%clk
0:02:50.7]} 8... Nf6 {[%clk 0:02:52.6]} 9. Nxe7 {[%clk 0:02:25.9]} 9... Qxe7
{[%clk 0:02:51.3]} 10. Nc4 {[%clk 0:02:25.1]} 10... O-O {[%clk 0:02:18.8]} 11.
Qxd6 {[%clk 0:01:58]} 11... Qxd6 {[%clk 0:02:16.3]} 12. Nxd6 {[%clk 0:01:57.6]}
12... Nb4 {[%clk 0:02:14.2]} 13. Bd3 {[%clk 0:01:45.6]} 13... Rd8 {[%clk
0:02:12.5]} 14. Nxc8 {[%clk 0:00:59.1]} 14... Raxc8 {[%clk 0:02:10.4]} 15. Ke2
{[%clk 0:00:50]} 15... Nxc2 {[%clk 0:02:02.7]} 16. Bxc2 {[%clk 0:00:39.5]} 16...
Rxc2+ {[%clk 0:02:01.4]} 17. Kf3 {[%clk 0:00:40.1]} 17... Rd3+ {[%clk
0:01:44.8]} 18. Be3 {[%clk 0:00:38.7]} 18... Rxb2 {[%clk 0:01:39.2]} 19. Rhb1
{[%clk 0:00:36.3]} 19... Rxb1 {[%clk 0:01:30]} 20. Rxb1 {[%clk 0:00:37.2]} 20...
Rd7 {[%clk 0:01:28.7]} 21. Rc1 {[%clk 0:00:23.3]} 21... h6 {[%clk 0:01:24.5]}
22. Rc8+ {[%clk 0:00:20.6]} 22... Kh7 {[%clk 0:01:24.4]} 23. a4 {[%clk
0:00:11.9]} 23... Kg6 {[%clk 0:01:11.5]} 24. a5 {[%clk 0:00:10.2]} 24... h5
{[%clk 0:01:10.7]} 25. h3 {[%clk 0:00:04.5]} 25... Rd1 {[%clk 0:00:58.8]} 26.
Rb8 {[%clk 0:00:02.4]} 26... Rb1 {[%clk 0:00:57.4]} 27. Bb6 {[%clk 0:00:02.3]}
27... Rb4 {[%clk 0:00:54.4]} 28. Rxb7 {[%clk 0:00:01.7]} 28... Nxe4 {[%clk
0:00:52.9]} 29. Ra7 {[%clk 0:00:02.2]} 29... f5 {[%clk 0:00:43.1]} 0-1

[Event "*** Titled Tuesday Blitz"]
[Site "Chess.com"]
[Date "2020.12.29"]
[Round "1"]
[White "MIJuanReyesRosa"]
[Black "Snowflake"]
[Result "1-0"]
[WhiteElo "2062"]
[BlackElo "2469"]
[TimeControl "180+1"]
[EndTime "10:06:41 PST"]
[Termination "MIJuanReyesRosa won by checkmate"]

1. d4 {[%clk 0:02:56.4]} 1... d5 {[%clk 0:02:51.4]} 2. c4 {[%clk 0:02:55.1]}
2... e6 {[%clk 0:02:44.4]} 3. Nc3 {[%clk 0:02:54.2]} 3... a6 {[%clk 0:02:44.2]}
4. e3 {[%clk 0:02:46.8]} 4... Nf6 {[%clk 0:02:40.6]} 5. Nf3 {[%clk 0:02:45.9]}
5... c5 {[%clk 0:02:13.1]} 6. a3 {[%clk 0:02:40.9]} 6... Nc6 {[%clk 0:02:12.8]}
7. Bd3 {[%clk 0:02:35.3]} 7... Bd6 {[%clk 0:02:10.7]} 8. dxc5 {[%clk 0:02:33.7]}
8... Bxc5 {[%clk 0:02:10]} 9. b4 {[%clk 0:02:33.8]} 9... Bd6 {[%clk 0:02:10.6]}
10. Bb2 {[%clk 0:02:33.6]} 10... dxc4 {[%clk 0:02:07.4]} 11. Bxc4 {[%clk
0:02:32.6]} 11... b5 {[%clk 0:02:08.1]} 12. Bd3 {[%clk 0:02:28.3]} 12... Bb7
{[%clk 0:02:07]} 13. Ne4 {[%clk 0:02:19.2]} 13... Be7 {[%clk 0:02:06.3]} 14. O-O
{[%clk 0:02:06.3]} 14... O-O {[%clk 0:02:01.7]} 15. Qe2 {[%clk 0:01:52.7]} 15...
Nd5 {[%clk 0:01:45.5]} 16. Rfd1 {[%clk 0:01:47.8]} 16... Qb6 {[%clk 0:01:45.1]}
17. Rac1 {[%clk 0:01:46.5]} 17... Rfd8 {[%clk 0:01:41.8]} 18. Bb1 {[%clk
0:01:38.5]} 18... Rac8 {[%clk 0:01:36.9]} 19. h3 {[%clk 0:01:36.9]} 19... Bf8
{[%clk 0:01:27.8]} 20. Ng3 {[%clk 0:01:31.4]} 20... a5 {[%clk 0:01:24.5]} 21.
bxa5 {[%clk 0:01:28.4]} 21... Nxa5 {[%clk 0:01:25.4]} 22. Ng5 {[%clk 0:01:20]}
22... h6 {[%clk 0:01:20.1]} 23. Qh5 {[%clk 0:01:06.6]} 23... Rd7 {[%clk
0:00:56.4]} 24. Rxc8 {[%clk 0:01:03.7]} 24... Bxc8 {[%clk 0:00:57.3]} 25. Bh7+
{[%clk 0:00:50.1]} 25... Kh8 {[%clk 0:00:57.1]} 26. Qxh6 {[%clk 0:00:41.2]}
26... Nf6 {[%clk 0:00:54.4]} 27. Bxf6 {[%clk 0:00:24.4]} 27... Rxd1+ {[%clk
0:00:54.1]} 28. Kh2 {[%clk 0:00:24]} 28... gxf6 {[%clk 0:00:22.5]} 29. Qxf8#
{[%clk 0:00:20.5]} 1-0